bitfinex/quotes_BTCUSD_20240715
["timestamp","ask_amount","ask_price","bid_price","bid_amount"]
[1721004881537,0.00832,61426.0,61425.0,0.25520221]
[1721004881873,0.00832,61426.0,61425.0,0.10868221]
[1721004882082,0.00832,61426.0,61425.0,0.25520221]
[1721004882305,0.00832,61426.0,61425.0,0.12268221]
[1721004882513,0.01432,61426.0,61425.0,0.12268221]
[1721004882720,0.00832,61426.0,61425.0,0.02268221]
[1721004883388,0.01432,61426.0,61425.0,0.03668221]
[1721004883636,0.02206491,61426.0,61425.0,0.02268221]
[1721004884040,2.05175691,61426.0,61425.0,0.02268221]
[1721004884250,2.05175691,61426.0,61425.0,0.03668221]
[1721004885275,0.36536491,61426.0,61425.0,0.03668221]
[1721004885480,0.36536491,61426.0,61425.0,0.02268221]
[1721004885689,0.29736491,61426.0,61425.0,0.01068221]
[1721004885919,0.08836491,61426.0,61425.0,0.01168221]
[1721004886305,0.08836491,61426.0,61425.0,0.00868221]
[1721004886510,0.08836491,61426.0,61425.0,0.00968221]
[1721004886723,0.02206491,61426.0,61425.0,0.00968221]
[1721004886934,0.01606491,61426.0,61425.0,0.00968221]
[1721004887408,0.01606491,61426.0,61425.0,0.01168221]
[1721004887780,0.00832,61426.0,61425.0,0.01168221]
[1721004887999,0.00832,61426.0,61425.0,0.56524221]
[1721004888000,1e-08,61426.0,61425.0,0.56524221]
[1721004888204,1e-08,61426.0,61425.0,0.53942009]
[1721004888611,1e-08,61426.0,61425.0,1.04646009]
[1721004888821,1e-08,61426.0,61425.0,1.04446009]
[1721004889035,1e-08,61426.0,61425.0,0.93046009]
[1721004889171,1e-08,61426.0,61425.0,1.04446009]
[1721004889579,1e-08,61426.0,61425.0,1.04346009]
[1721004889789,0.0122251,61428.0,61425.0,1.04346009]
[1721004889790,0.0122251,61428.0,61427.0,0.846575]
[1721004890467,0.0122251,61428.0,61427.0,0.439545]
[1721004891085,0.0122251,61428.0,61427.0,0.44822721]
[1721004891726,0.0122251,61428.0,61427.0,0.74125721]
[1721004891936,0.0122251,61428.0,61427.0,0.85525721]
[1721004892138,0.0122251,61428.0,61427.0,0.44822721]
[1721004892404,0.0122251,61428.0,61427.0,0.54822721]
[1721004892589,0.0122251,61428.0,61427.0,0.10868221]
[1721004893006,0.0122251,61428.0,61427.0,0.26919721]
[1721004893219,0.0122251,61428.0,61427.0,0.56222721]
[1721004893423,0.0122251,61428.0,61427.0,0.85525721]
[1721004893652,0.0122251,61428.0,61427.0,0.13668221]
[1721004893844,0.0122251,61428.0,61427.0,0.54822721]
[1721004894061,0.0122251,61428.0,61427.0,0.56222721]
[1721004894237,0.0122251,61428.0,61427.0,0.42971221]
[1721004894436,0.0122251,61428.0,61427.0,0.28319721]
[1721004895070,0.0122251,61428.0,61427.0,0.13668221]
[1721004895275,0.0122251,61428.0,61427.0,0.03668221]
[1721004895584,0.0122251,61428.0,61427.0,0.02268221]
[1721004895585,0.0182251,61428.0,61427.0,0.02268221]
[1721004895705,0.0182251,61428.0,61427.0,0.03668221]
[1721004895908,0.0182251,61428.0,61427.0,0.02268221]
[1721004896511,0.0182251,61428.0,61427.0,0.03668221]
[1721004897320,1.9816171,61428.0,61427.0,0.00868221]
[1721004897792,0.2112251,61428.0,61427.0,0.00868221]
[1721004898044,0.0182251,61428.0,61427.0,0.00868221]
[1721004898251,0.0182251,61428.0,61427.0,0.02168221]
[1721004898600,0.0182251,61428.0,61427.0,0.03468221]
[1721004899010,0.0182251,61428.0,61427.0,0.02168221]
[1721004899767,0.0182251,61428.0,61427.0,0.03468221]
[1721004900024,0.0182251,61428.0,61427.0,0.02168221]
[1721004900233,0.0182251,61428.0,61427.0,0.00868221]
[1721004900490,0.0182251,61428.0,61427.0,0.02168221]
[1721004900695,0.0122251,61428.0,61427.0,0.02168221]
[1721004900893,0.0122251,61428.0,61427.0,0.00868221]
[1721004901799,0.0122251,61428.0,61427.0,0.02168221]
[1721004901982,0.0182251,61428.0,61427.0,0.03468221]
[1721004902187,0.0182251,61428.0,61427.0,0.02168221]
[1721004902514,0.0122251,61428.0,61427.0,0.02168221]
[1721004902750,0.0182251,61428.0,61427.0,0.02168221]
[1721004902958,0.03777953,61428.0,61427.0,0.02168221]
[1721004903167,0.04377953,61428.0,61427.0,0.02268221]
[1721004903382,0.03777953,61428.0,61427.0,0.02268221]
[1721004903590,0.04377953,61428.0,61427.0,0.02268221]
[1721004903787,0.04377953,61428.0,61427.0,0.00868221]
[1721004904386,0.04377953,61428.0,61427.0,0.02168221]
[1721004905154,0.04377953,61428.0,61427.0,0.03468221]
[1721004905357,0.04460953,61428.0,61427.0,0.03468221]
[1721004905806,0.03860953,61428.0,61427.0,0.32449721]
[1721004906015,0.01032,61429.0,61428.0,0.03272]
[1721004906218,0.01032,61429.0,61428.0,0.00306353]
[1721004906437,0.01032,61429.0,61428.0,0.66528274]
[1721004906665,0.01032,61429.0,61428.0,0.95830774]
[1721004907076,0.01032,61429.0,61428.0,0.66528274]
[1721004907280,0.01032,61429.0,61428.0,0.61128274]
[1721004908159,0.01032,61429.0,61428.0,0.66528274]
[1721004908369,0.01032,61429.0,61428.0,0.67928274]
[1721004908618,0.01032,61429.0,61428.0,0.97230774]
[1721004910011,0.01032,61429.0,61428.0,0.98630774]
[1721004910275,0.01032,61429.0,61428.0,0.97230774]
[1721004910590,0.01032,61429.0,61428.0,1.78415274]
[1721004910738,0.01032,61429.0,61428.0,1.86225274]
[1721004910959,0.006,61444.0,61440.0,0.14597823]
[1721004911120,0.006,61445.0,61438.0,0.313]
[1721004911323,0.0057609,61452.0,61451.0,0.553374]
[1721004911562,0.0057609,61452.0,61451.0,1.66232035]
[1721004911734,0.0057609,61452.0,61451.0,2.00652035]
[1721004912110,0.0057609,61452.0,61451.0,1.97862035]
[1721004912315,0.0057609,61452.0,61451.0,2.58768021]
[1721004912521,0.10268742,61456.0,61455.0,0.71882]
[1721004912522,0.01472626,61456.0,61455.0,0.71882]
[1721004912702,0.002,61469.0,61467.0,0.114]
[1721004912930,0.002,61469.0,61466.0,0.0793]
[1721004912931,0.002,61469.0,61468.0,0.1]
[1721004913346,0.002,61469.0,61465.0,0.03272]
[1721004913572,0.002,61469.0,61460.0,0.0781]
[1721004913573,0.006,61461.0,61460.0,0.03272]
[1721004913782,0.006,61461.0,61448.0,0.0639]
[1721004913783,0.006,61452.0,61449.0,0.00306353]
[1721004914070,0.006,61448.0,61441.0,0.00306353]
[1721004914213,0.006,61449.0,61441.0,0.00306353]
[1721004914415,0.006,61451.0,61447.0,0.00869657]
[1721004914588,0.006,61449.0,61448.0,0.00306353]
[1721004914822,0.02517965,61449.0,61448.0,0.0117601]
[1721004915042,0.02517965,61449.0,61448.0,0.00869657]
[1721004915043,0.20269653,61449.0,61448.0,0.00869657]
[1721004915279,2.20696088,61449.0,61448.0,0.00869657]
[1721004915486,2.56650825,61449.0,61448.0,0.00869657]
[1721004915691,2.36650825,61449.0,61448.0,0.00869657]
[1721004916119,2.23939937,61449.0,61448.0,0.00869657]
[1721004916510,1.18700737,61449.0,61448.0,0.00869657]
[1721004916742,1.01000737,61449.0,61448.0,0.00869657]
[1721004916956,0.99945653,61449.0,61448.0,0.00869657]
[1721004917181,0.74,61449.0,61448.0,0.00869657]
[1721004917381,2.08938853,61449.0,61448.0,0.00869657]
[1721004917581,1.969392,61449.0,61448.0,0.00869657]
[1721004917816,1.462,61449.0,61448.0,0.00869657]
[1721004918566,0.006,61450.0,61448.0,0.00869657]
[1721004918745,0.006,61450.0,61449.0,0.08717788]
[1721004918946,0.006,61454.0,61449.0,0.09587445]
[1721004919151,0.006,61451.0,61449.0,0.09587445]
[1721004919347,0.006,61450.0,61449.0,0.0107601]
[1721004919550,0.006,61450.0,61449.0,0.00869657]
[1721004919757,0.006,61451.0,61449.0,0.00869657]
[1721004919953,0.006,61453.0,61450.0,0.0107601]
[1721004920177,0.0603,61460.0,61450.0,0.0107601]
[1721004920178,0.006,61451.0,61450.0,0.0107601]
[1721004920388,0.006,61455.0,61450.0,0.00869657]
[1721004920584,0.006,61453.0,61451.0,0.00206353]
[1721004920840,0.006,61452.0,61451.0,0.00206353]
[1721004921046,0.0603,61460.0,61451.0,0.00206353]
[1721004921047,0.006,61453.0,61451.0,0.00206353]
[1721004921191,0.006,61452.0,61451.0,0.00206353]
[1721004921429,0.02304643,61452.0,61451.0,0.00206353]
[1721004921765,0.02304643,61452.0,61450.0,0.00869657]
[1721004921766,0.001,61451.0,61450.0,0.00869657]
[1721004921955,0.001,61450.0,61449.0,0.009]
[1721004922156,1.964392,61450.0,61449.0,0.01769657]
[1721004922934,1.963392,61450.0,61449.0,0.00869657]
[1721004923122,0.001,61450.0,61449.0,0.00869657]
[1721004924555,0.001,61450.0,61449.0,0.01969657]
[1721004924975,0.001,61450.0,61449.0,0.00869657]
[1721004925208,0.01304643,61452.0,61449.0,0.02469657]
[1721004925386,0.01304643,61452.0,61450.0,0.00206353]
[1721004925576,2.23830408,61451.0,61450.0,0.00206353]
[1721004925800,0.12099653,61450.0,61449.0,0.01569657]
[1721004925975,2.09860443,61450.0,61449.0,0.02169657]
[1721004926179,2.49860443,61450.0,61449.0,0.02169657]
[1721004926495,2.49860443,61450.0,61449.0,0.00869657]
[1721004926496,2.70694154,61450.0,61449.0,0.00869657]
[1721004926700,2.38694501,61450.0,61449.0,0.00869657]
[1721004926906,2.45994815,61450.0,61449.0,0.00869657]
[1721004927104,2.78090146,61450.0,61449.0,0.00869657]
[1721004927399,2.80524299,61450.0,61449.0,0.00869657]
[1721004927761,2.48524646,61450.0,61449.0,0.00869657]
[1721004927966,0.11999653,61427.0,61426.0,0.000913]
[1721004928205,2.11354274,61427.0,61426.0,0.000913]
[1721004928422,2.23353927,61427.0,61426.0,0.000913]
[1721004928640,2.11354274,61427.0,61426.0,0.000913]
[1721004929044,2.23353927,61427.0,61426.0,0.000913]
[1721004929257,1.37314727,61427.0,61426.0,0.000913]
[1721004929606,1.54196083,61427.0,61426.0,0.000913]
[1721004929811,1.44796083,61427.0,61426.0,0.001913]
[1721004930011,1.44796083,61427.0,61426.0,0.002913]
[1721004930012,1.42596083,61427.0,61426.0,0.002913]
[1721004930217,1.42647462,61427.0,61426.0,0.002913]
[1721004930418,1.62647462,61427.0,61426.0,0.002913]
[1721004930637,1.62647462,61427.0,61426.0,0.001913]
[1721004930638,1.44847462,61427.0,61426.0,0.001913]
[1721004930838,1.82148898,61427.0,61426.0,0.001913]
[1721004931116,2.00971202,61427.0,61426.0,0.000913]
[1721004931318,1.93947462,61427.0,61426.0,0.000913]
[1721004931519,1.94247462,61427.0,61426.0,0.000913]
[1721004931933,1.95047462,61427.0,61426.0,0.001913]
[1721004932135,2.12257462,61427.0,61426.0,0.001913]
[1721004932509,2.09639406,61427.0,61426.0,0.001913]
[1721004932713,1.95347462,61427.0,61426.0,0.001913]
[1721004932955,2.45347462,61427.0,61426.0,0.001913]
[1721004933196,2.45047462,61427.0,61426.0,0.001913]
[1721004933439,2.39399653,61427.0,61426.0,0.001913]
[1721004933608,2.62460317,61427.0,61426.0,0.002913]
[1721004933784,2.45436577,61427.0,61426.0,0.002913]
[1721004934231,2.6002296,61427.0,61426.0,0.002913]
[1721004934438,2.76127,61427.0,61426.0,0.001913]
[1721004934644,0.18129653,61406.0,61402.0,0.08511435]
[1721004934846,0.11999653,61402.0,61391.0,0.16031435]
[1721004935056,0.11999653,61399.0,61391.0,0.16031435]
[1721004935224,1.97354679,61398.0,61391.0,0.08511435]
[1721004935427,0.0613,61406.0,61391.0,0.08511435]
[1721004935428,1.79515479,61397.0,61391.0,0.08511435]
[1721004935631,0.918,61396.0,61391.0,0.08511435]
[1721004935828,0.0613,61406.0,61391.0,0.08511435]
[1721004935829,2.08338853,61401.0,61391.0,0.08511435]
[1721004936033,0.11999653,61399.0,61391.0,0.08511435]
[1721004936229,1.963392,61398.0,61391.0,0.08511435]
[1721004936434,0.11999653,61395.0,61391.0,0.08511435]
[1721004936695,0.11999653,61392.0,61391.0,0.009]
[1721004936861,2.08338853,61392.0,61391.0,0.009]
[1721004937063,1.963392,61392.0,61391.0,0.009]
[1721004937268,0.11999653,61394.0,61391.0,0.009]
[1721004937269,1.963392,61393.0,61391.0,0.009]
[1721004937469,1.963392,61393.0,61391.0,0.008]
[1721004937470,0.18579653,61392.0,61391.0,0.008]
[1721004937687,2.15326106,61392.0,61391.0,0.008913]
[1721004938495,2.15326106,61392.0,61391.0,0.007913]
[1721004939279,2.15326106,61392.0,61391.0,0.000913]
[1721004939482,2.35326106,61392.0,61391.0,0.000913]
[1721004939687,2.15326106,61392.0,61391.0,0.000913]
[1721004939887,2.37726106,61392.0,61391.0,0.000913]
[1721004940084,2.38741974,61392.0,61391.0,0.000913]
[1721004940631,2.17726106,61392.0,61391.0,0.000913]
[1721004940808,2.15426106,61392.0,61391.0,0.000913]
[1721004941025,2.08846106,61392.0,61391.0,0.000913]
[1721004942910,1.96846453,61392.0,61391.0,0.000913]
[1721004943110,1.964392,61392.0,61391.0,0.000913]
[1721004943290,1.964392,61392.0,61391.0,0.062713]
[1721004943291,0.001,61392.0,61391.0,0.062713]
[1721004943888,0.001,61392.0,61391.0,0.407214]
[1721004944166,0.001,61392.0,61391.0,0.700416]
[1721004944308,0.001,61392.0,61391.0,0.50927753]
[1721004944509,0.001,61392.0,61391.0,0.80247953]
[1721004944997,0.001,61392.0,61391.0,1.09568153]
[1721004945837,0.01705741,61406.0,61391.0,1.09568153]
[1721004945838,0.01705741,61406.0,61398.0,0.0808]
[1721004946049,0.01705741,61406.0,61399.0,0.08617788]
[1721004946693,0.01705741,61406.0,61402.0,0.146574]
[1721004946902,0.01705741,61406.0,61403.0,0.00206353]
[1721004947159,0.01705741,61406.0,61404.0,0.06]
[1721004947370,0.01805741,61406.0,61405.0,0.14863053]
[1721004947808,0.01805741,61406.0,61405.0,0.44176553]
[1721004948009,0.01805741,61406.0,61405.0,0.439702]
[1721004948217,0.01805741,61406.0,61405.0,0.00206353]
[1721004948463,0.01805741,61406.0,61405.0,0.85290053]
[1721004948710,0.01905741,61406.0,61405.0,0.950837]
[1721004948951,0.003,61406.0,61405.0,0.736002]
[1721004949198,0.002,61406.0,61405.0,0.618002]
[1721004949449,0.002,61416.0,61407.0,0.146562]
[1721004949689,0.002,61416.0,61408.0,0.00206353]
[1721004949940,0.002,61410.0,61408.0,0.00206353]
[1721004950201,0.001,61414.0,61408.0,0.00206353]
[1721004950519,0.001,61414.0,61407.0,0.12006353]
[1721004950698,0.002,61414.0,61407.0,0.00706353]
[1721004950960,0.002,61414.0,61407.0,0.15362553]
[1721004951198,0.002,61410.0,61407.0,0.00706353]
[1721004951431,0.5,61417.0,61407.0,0.005]
[1721004951432,0.002,61408.0,61407.0,0.005]
[1721004951677,0.002,61408.0,61407.0,0.004]
[1721004952187,0.002,61407.0,61406.0,0.00206353]
[1721004952914,0.003,61410.0,61406.0,0.00206353]
[1721004953177,0.001,61408.0,61407.0,0.008]
[1721004953655,0.001,61408.0,61406.0,0.00206353]
[1721004953656,0.001,61407.0,61406.0,0.01606353]
[1721004953894,0.001,61407.0,61406.0,0.02406353]
[1721004953895,0.004,61407.0,61406.0,0.02406353]
[1721004954134,0.003,61407.0,61406.0,0.01606353]
[1721004954627,0.003,61407.0,61406.0,0.014]
[1721004954828,0.002,61403.0,61400.0,0.08511435]
[1721004955033,0.002,61403.0,61401.0,0.00206353]
[1721004955240,0.002,61402.0,61401.0,0.00206353]
[1721004955875,0.002,61403.0,61401.0,0.00206353]
[1721004956081,0.002,61402.0,61401.0,0.00206353]
[1721004956723,0.003,61402.0,61401.0,0.00906353]
[1721004956923,0.002,61401.0,61400.0,0.08511435]
[1721004957141,0.002,61400.0,61399.0,0.0756]
[1721004957581,0.001,61402.0,61399.0,0.0756]
[1721004957582,0.003,61402.0,61399.0,0.0756]
[1721004957786,0.003,61402.0,61400.0,0.00206353]
[1721004957787,0.002,61401.0,61400.0,0.00206353]
[1721004957995,0.003,61402.0,61400.0,0.00206353]
[1721004958248,0.004,61402.0,61401.0,0.014]
[1721004958827,0.00507112,61413.0,61399.0,0.0756]
[1721004958828,0.002,61400.0,61399.0,0.0756]
[1721004959059,0.001,61401.0,61400.0,0.09911435]
[1721004959651,0.001,61402.0,61400.0,0.08511435]
[1721004959952,0.001,61402.0,61401.0,0.00206353]
[1721004960171,0.002,61403.0,61401.0,0.00206353]
[1721004960491,0.002,61403.0,61401.0,0.00106353]
[1721004960905,0.001,61402.0,61401.0,0.01506353]
[1721004961963,0.001,61402.0,61401.0,0.014]
[1721004962162,0.002,61403.0,61401.0,0.00106353]
[1721004962365,0.002,61402.0,61401.0,0.00106353]
[1721004962565,0.002,61403.0,61401.0,0.00106353]
[1721004962989,0.002,61404.0,61401.0,0.00106353]
[1721004963354,0.002,61403.0,61401.0,0.00106353]
[1721004963755,0.002,61402.0,61401.0,0.00106353]
[1721004964131,0.002,61400.0,61399.0,0.0756]
[1721004964544,0.002,61398.0,61394.0,0.0799]
[1721004964749,0.002,61396.0,61395.0,0.00106353]
[1721004965368,0.002,61396.0,61394.0,0.0799]
[1721004965369,0.002,61393.0,61392.0,0.08511435]
[1721004965568,1.768,61393.0,61391.0,0.000913]
[1721004965792,0.0788,61402.0,61391.0,0.000913]
[1721004965793,2.08538853,61392.0,61391.0,0.000913]
[1721004966009,1.965392,61392.0,61391.0,0.000913]
[1721004966622,0.002,61397.0,61391.0,0.000913]
[1721004966837,0.002,61397.0,61395.0,0.1442]
[1721004967047,0.002,61396.0,61395.0,0.0824]
[1721004967248,0.002,61399.0,61395.0,0.0824]
[1721004967453,0.002,61401.0,61396.0,0.00106353]
[1721004967649,0.00607123,61409.0,61396.0,0.00106353]
[1721004967650,0.002,61398.0,61396.0,0.00106353]
[1721004967855,0.002,61403.0,61396.0,0.00106353]
[1721004968091,0.002,61403.0,61401.0,0.08511435]
[1721004968310,0.002,61403.0,61402.0,0.00106353]
[1721004969263,0.002,61402.0,61396.0,0.00106353]
[1721004969419,0.002,61407.0,61396.0,0.00106353]
[1721004969621,0.002,61399.0,61396.0,0.00106353]
[1721004969826,0.002,61399.0,61395.0,0.0824]
[1721004970032,0.002,61399.0,61396.0,0.00106353]
[1721004970228,0.002,61397.0,61396.0,0.00106353]
[1721004970633,0.002,61393.0,61392.0,0.08617788]
[1721004970850,0.002,61393.0,61392.0,0.00106353]
[1721004971202,0.002,61393.0,61391.0,0.000913]
[1721004971203,0.002,61392.0,61391.0,0.000913]
[1721004972104,2.08538853,61392.0,61391.0,0.000913]
[1721004972306,1.97554816,61392.0,61391.0,0.000913]
[1721004972579,0.27815616,61392.0,61391.0,0.000913]
[1721004972786,0.01215616,61392.0,61391.0,0.000913]
[1721004973335,0.63015616,61392.0,61391.0,0.000913]
[1721004973680,1.97554816,61392.0,61391.0,0.000913]
[1721004974260,2.00111567,61392.0,61391.0,0.000913]
[1721004974465,1.99095951,61392.0,61391.0,0.000913]
[1721004974666,2.00111652,61392.0,61391.0,0.000913]
[1721004977284,1.41272452,61392.0,61391.0,0.000913]
[1721004977922,0.4637248,61392.0,61391.0,0.000913]
[1721004978068,0.1977243,61392.0,61391.0,0.000913]
[1721004978266,0.1867243,61392.0,61391.0,0.000913]
[1721004978732,0.0377243,61392.0,61391.0,0.079413]
[1721004980337,0.0377243,61392.0,61391.0,0.143213]
[1721004980707,0.0357243,61392.0,61391.0,0.143213]
[1721004980916,0.02756751,61392.0,61391.0,0.143213]
[1721004981113,0.03772392,61392.0,61391.0,0.079413]
[1721004981329,0.03772392,61392.0,61391.0,0.000913]
[1721004983258,2.18561245,61392.0,61391.0,0.000913]
[1721004983462,2.23052819,61392.0,61391.0,0.000913]
[1721004983683,2.50076559,61392.0,61391.0,0.000913]
[1721004983883,2.62664457,61392.0,61391.0,0.000913]
[1721004984165,2.35101749,61392.0,61391.0,0.000913]
[1721004984364,2.35352819,61392.0,61391.0,0.000913]
[1721004984593,2.29845604,61392.0,61391.0,0.000913]
[1721004984826,2.4753509,61392.0,61391.0,0.000913]
[1721004985365,2.29457762,61392.0,61391.0,0.000913]
[1721004985623,2.19710882,61392.0,61391.0,0.000913]
[1721004985854,2.13310882,61392.0,61391.0,0.000913]
[1721004986068,2.61010882,61392.0,61391.0,0.000913]
[1721004987684,2.11010882,61392.0,61391.0,0.000913]
[1721004988615,0.37761229,61392.0,61391.0,0.000913]
[1721004988946,0.45071524,61392.0,61391.0,0.000913]
[1721004989151,0.45071511,61392.0,61391.0,0.000913]
[1721004989347,0.47508673,61392.0,61391.0,0.000913]
[1721004989563,0.37761229,61392.0,61391.0,0.000913]
[1721004989945,0.49760882,61392.0,61391.0,0.000913]
[1721004990597,0.59506722,61392.0,61391.0,0.000913]
[1721004991036,0.44256404,61392.0,61391.0,0.000913]
[1721004991223,0.59512788,61392.0,61391.0,0.000913]
[1721004991426,0.44256404,61392.0,61391.0,0.000913]
[1721004991628,0.59482489,61392.0,61391.0,0.0006668]
[1721004991833,0.47482836,61392.0,61391.0,0.0006668]
[1721004992169,0.37737791,61392.0,61391.0,0.0006668]
[1721004992324,0.45046493,61392.0,61391.0,0.0006668]
[1721004992531,0.37737791,61392.0,61391.0,0.0006668]
[1721004993853,0.37716583,61392.0,61391.0,0.0006668]
[1721004994468,0.37716667,61392.0,61391.0,0.0006668]
[1721004994643,0.08216667,61392.0,61391.0,0.0006668]
[1721004994844,0.2021632,61392.0,61391.0,0.0006668]
[1721004995071,2.1655552,61392.0,61391.0,0.0006668]
[1721004995270,2.1696274,61392.0,61391.0,0.0006668]
[1721004995671,2.24271051,61392.0,61391.0,0.0006668]
[1721004997463,2.1696274,61392.0,61391.0,0.0006668]
[1721004997689,2.16964849,61392.0,61391.0,0.0006668]
[1721004998720,2.26715165,61392.0,61391.0,0.0006668]
[1721005001038,2.22273057,61392.0,61391.0,0.0006668]
[1721005001242,2.60080064,61392.0,61391.0,0.0006668]
[1721005001445,2.25601829,61392.0,61391.0,0.0006668]
[1721005001605,2.35601829,61392.0,61391.0,0.0006668]
[1721005001809,2.25601829,61392.0,61391.0,0.0006668]
[1721005002218,2.35601829,61392.0,61391.0,0.0006668]
[1721005002754,2.50233571,61392.0,61391.0,0.0006668]
[1721005002897,2.67257311,61392.0,61391.0,0.0006668]
[1721005003104,2.35601829,61392.0,61391.0,0.0006668]
[1721005004057,2.25601829,61392.0,61391.0,0.0006668]
[1721005004209,2.75601829,61392.0,61391.0,0.0006668]
[1721005004418,2.40199732,61392.0,61391.0,0.0006668]
[1721005004606,2.90199732,61392.0,61391.0,0.0006668]
[1721005004814,2.90282732,61392.0,61391.0,0.0006668]
[1721005005247,2.40282732,61392.0,61391.0,0.0006668]
[1721005005453,2.50282732,61392.0,61391.0,0.0006668]
[1721005005676,2.35645656,61392.0,61391.0,0.0006668]
[1721005005828,2.93818092,61392.0,61391.0,0.0006668]
[1721005006029,2.43818092,61392.0,61391.0,0.0006668]
[1721005006292,2.93818092,61392.0,61391.0,0.0006668]
[1721005006468,2.85645656,61392.0,61391.0,0.0006668]
[1721005006650,2.93675656,61392.0,61391.0,0.0006668]
[1721005006853,3.13675656,61392.0,61391.0,0.0006668]
[1721005007536,3.08235824,61392.0,61391.0,0.0006668]
[1721005007716,3.1369425,61392.0,61391.0,0.0006668]
[1721005007914,3.3071799,61392.0,61391.0,0.0006668]
[1721005008750,3.83989232,61392.0,61391.0,0.0006668]
[1721005008891,3.9567458,61392.0,61391.0,0.0006668]
[1721005009086,4.12549941,61392.0,61391.0,0.0006668]
[1721005009290,4.08312588,61392.0,61391.0,0.0006668]
[1721005009547,4.03898778,61392.0,61391.0,0.0006668]
[1721005010687,3.98440352,61392.0,61391.0,0.0006668]
[1721005010896,4.03914667,61392.0,61391.0,0.0006668]
[1721005011100,3.91276659,61392.0,61391.0,0.0006668]
[1721005012312,3.14252919,61392.0,61391.0,0.0006668]
[1721005012513,2.97042919,61392.0,61391.0,0.0006668]
[1721005012716,3.23302919,61392.0,61391.0,0.0006668]
[1721005013866,3.33302919,61392.0,61391.0,0.0006668]
[1721005014080,3.3313532,61392.0,61391.0,0.0006668]
[1721005014287,3.5015906,61392.0,61391.0,0.0006668]
[1721005014663,2.8313532,61392.0,61391.0,0.0006668]
[1721005014871,3.3313532,61392.0,61391.0,0.0006668]
[1721005015607,3.1313532,61392.0,61391.0,0.0006668]
[1721005015809,2.23256511,61392.0,61391.0,0.0006668]
[1721005016034,2.1878532,61392.0,61391.0,0.0006668]
[1721005016657,2.06785667,61392.0,61391.0,0.0006668]
[1721005016859,2.1878532,61392.0,61391.0,0.0006668]
[1721005017034,2.6878532,61392.0,61391.0,0.0006668]
[1721005017420,2.04450325,61392.0,61391.0,0.0006668]
[1721005018556,2.66449978,61392.0,61391.0,0.0006668]
[1721005018761,2.68749978,61392.0,61391.0,0.0006668]
[1721005019005,2.06750325,61392.0,61391.0,0.0006668]
[1721005019382,2.04450325,61392.0,61391.0,0.0811668]
[1721005019566,2.1909622,61392.0,61391.0,0.0811668]
[1721005019812,2.04450325,61392.0,61391.0,0.0811668]
[1721005020011,2.19096085,61392.0,61391.0,0.0811668]
[1721005020214,2.31095738,61392.0,61391.0,0.0006668]
[1721005020438,2.52789978,61392.0,61391.0,0.0006668]
[1721005020645,2.52729602,61392.0,61391.0,0.0006668]
[1721005021185,2.72729602,61392.0,61391.0,0.0006668]
[1721005021344,2.99753342,61392.0,61391.0,0.0006668]
[1721005022418,2.82729602,61392.0,61391.0,0.0006668]
[1721005022618,3.23679602,61392.0,61391.0,0.0006668]
[1721005022792,3.23679602,61392.0,61386.0,0.00913]
[1721005022793,1.16419653,61387.0,61386.0,0.00913]
[1721005022988,1.26419653,61387.0,61386.0,0.00913]
[1721005023185,1.50937557,61387.0,61386.0,0.00913]
[1721005023588,1.52644428,61387.0,61386.0,0.00913]
[1721005023769,3.48983628,61387.0,61386.0,0.00913]
[1721005025031,3.31959888,61387.0,61386.0,0.00913]
[1721005026242,2.76765724,61387.0,61386.0,0.00913]
[1721005026593,3.24181665,61387.0,61386.0,0.00913]
[1721005027364,3.04181665,61387.0,61386.0,0.00913]
[1721005027573,2.75166624,61387.0,61386.0,0.00913]
[1721005027774,3.42190364,61387.0,61386.0,0.00913]
[1721005028033,2.92190364,61387.0,61386.0,0.00913]
[1721005028165,3.42190364,61387.0,61386.0,0.00913]
[1721005028972,2.75166624,61387.0,61386.0,0.00913]
[1721005029187,2.98706624,61387.0,61386.0,0.00913]
[1721005029414,2.88706624,61387.0,61386.0,0.00913]
[1721005029586,3.05123923,61387.0,61386.0,0.00913]
[1721005029794,3.15123923,61387.0,61386.0,0.00913]
[1721005030013,2.48650874,61387.0,61386.0,0.00913]
[1721005030218,2.78650874,61387.0,61386.0,0.00913]
[1721005030389,2.28650874,61387.0,61386.0,0.00913]
[1721005030588,2.78650874,61387.0,61386.0,0.00913]
[1721005031015,0.82311674,61387.0,61386.0,0.00913]
[1721005031219,2.78650874,61387.0,61386.0,0.00913]
[1721005032477,0.81027062,61387.0,61386.0,0.14483]
[1721005032621,0.74127062,61387.0,61386.0,0.14483]
[1721005032826,0.74141165,61387.0,61386.0,0.14483]
[1721005034937,0.06841165,61387.0,61386.0,0.14483]
[1721005035142,0.07041165,61387.0,61386.0,0.14483]
[1721005035968,0.0704031,61387.0,61386.0,0.14483]
[1721005037787,0.19241003,61387.0,61386.0,0.14483]
[1721005038192,0.0684031,61387.0,61386.0,0.14483]
[1721005038396,0.19041681,61387.0,61386.0,0.14483]
[1721005039290,0.19041681,61387.0,61386.0,0.29250653]
[1721005039291,0.06855485,61387.0,61386.0,0.29250653]
[1721005039444,0.16616841,61387.0,61386.0,0.29250653]
[1721005039684,0.06855485,61387.0,61386.0,0.291443]
[1721005040712,0.06855485,61387.0,61386.0,0.14483]
[1721005040908,0.06855485,61387.0,61386.0,0.14589353]
[1721005041082,0.01706871,61387.0,61386.0,0.14589353]
[1721005041299,0.16605252,61387.0,61386.0,0.14589353]
[1721005041741,0.16605252,61387.0,61386.0,0.14483]
[1721005042148,0.06843896,61387.0,61386.0,0.14483]
[1721005042363,0.16605252,61387.0,61386.0,0.14483]
[1721005042567,0.16605252,61387.0,61386.0,0.14589353]
[1721005042777,0.16605985,61387.0,61386.0,0.14589353]
[1721005042979,0.16605985,61387.0,61386.0,0.14483]
[1721005043184,0.1997082,61387.0,61386.0,0.14483]
[1721005043517,0.07043896,61387.0,61386.0,0.14483]
[1721005043790,0.19246507,61387.0,61386.0,0.14483]
[1721005043998,0.07043896,61387.0,61386.0,0.14483]
[1721005044776,0.07043896,61387.0,61386.0,0.00913]
[1721005044777,0.07451173,61387.0,61386.0,0.00913]
[1721005044984,2.18090026,61387.0,61386.0,0.00913]
[1721005045425,2.52753766,61387.0,61386.0,0.00913]
[1721005045597,2.59283766,61387.0,61386.0,0.00913]